bitfinex-derivatives/quotes_ETHF0:USTF0_20250621
["timestamp","ask_amount","ask_price","bid_price","bid_amount"]
[1750549772665,3.2078,2258.7,2257.5,3.2078]
[1750549772868,3.2078,2258.7,2257.7,6.41559333]
[1750549773159,3.2078,2258.7,2257.7,9.62339333]
[1750549773359,3.2078,2258.2,2257.7,10.50895045]
[1750549773557,3.2078,2257.8,2257.4,3.2078]
[1750549773753,3.2078,2258.1,2257.7,6.41559333]
[1750549773958,3.2078,2258.0,2257.6,0.88562]
[1750549774167,3.2078,2258.2,2257.5,3.2078]
[1750549774364,3.2078,2257.7,2255.7,2.21593]
[1750549774664,3.2078,2257.7,2257.1,3.2078]
[1750549774665,46.798,2257.6,2257.1,3.2078]
[1750549774859,46.798,2257.6,2257.3,0.88573]
[1750549775054,46.798,2257.6,2257.0,3.2078]
[1750549775257,46.798,2257.6,2256.7,7.30155333]
[1750549775457,46.798,2257.6,2255.8,11.80293712]
[1750549775458,3.2078,2257.2,2256.6,9.62339333]
[1750549775656,3.2078,2256.9,2256.3,6.41559333]
[1750549775856,47.68365,2257.6,2256.6,0.88601]
[1750549775857,3.2078,2257.0,2256.6,0.88601]
[1750549776064,3.2078,2257.0,2256.3,4.09393]
[1750549776253,3.2078,2257.0,2256.3,9.62339333]
[1750549776459,46.798,2257.6,2256.9,3.2078]
[1750549776962,3.2078,2261.6,2259.9,6.41559333]
[1750549777158,0.08843687,2261.5,2261.0,3.2078]
[1750549777464,0.08843687,2261.5,2260.0,2.21166]
[1750549777465,0.08843687,2261.5,2261.3,3.2078]
[1750549777667,6.87e-06,2261.5,2261.4,7.29974333]
[1750549777868,4.1534,2262.7,2261.4,6.41559333]
[1750549778061,4.51213328,2262.7,2262.4,3.2078]
[1750549778266,0.35563196,2263.9,2262.4,2.84906672]
[1750549778464,0.35563196,2263.9,2263.6,3.2078]
[1750549779171,5.35563196,2263.9,2263.6,3.2078]
[1750549779367,3.2078,2263.8,2262.9,3.2078]
[1750549779566,3.2078,2263.2,2262.1,3.2078]
[1750549779758,0.35563196,2263.9,2262.9,3.2078]
[1750549779964,3.2078,2263.2,2262.6,3.2078]
[1750549780163,3.2078,2263.2,2262.0,3.2078]
[1750549780360,4.09125,2263.2,2262.7,3.2078]
[1750549780562,8.2078,2263.2,2262.6,3.2078]
[1750549780761,3.2078,2263.2,2262.1,3.2078]
[1750549780965,3.2078,2263.2,2262.6,3.2078]
[1750549781166,8.2078,2263.2,2262.3,3.2078]
[1750549781373,3.2078,2262.9,2261.9,3.2078]
[1750549781570,4.3003,2263.7,2262.3,3.2078]
[1750549781774,0.88333,2263.6,2262.8,3.2078]
[1750549781967,3.2078,2263.1,2261.4,3.2078]
[1750549782169,3.2078,2262.1,2261.1,3.2078]
[1750549782371,5.0,2262.1,2261.1,3.2078]
[1750549782576,5.0,2262.1,2261.5,3.2078]
[1750549782867,5.0,2262.1,2259.2,6.56148162]
[1750549782868,3.2078,2262.1,2261.4,3.2078]
[1750549783068,3.2078,2262.1,2259.2,6.56148162]
[1750549783069,0.88398,2261.9,2260.7,0.8844]
[1750549783268,6.5107,2262.0,2260.7,3.2078]
[1750549783468,11.5107,2262.0,2260.7,3.2078]
[1750549783671,0.88422,2261.3,2260.7,3.2078]
[1750549783868,53.2407,2261.2,2260.7,3.2078]
[1750549784069,53.2407,2261.2,2261.0,3.2078]
[1750549784273,49.9378,2262.7,2261.0,3.2078]
[1750549784573,6.5107,2261.1,2261.0,3.2078]
[1750549785078,6.5107,2261.1,2259.2,52.7032]
[1750549785079,11.5107,2261.1,2260.6,3.2078]
[1750549785464,11.5107,2261.1,2259.2,5.9732]
[1750549785465,3.2078,2260.7,2259.6,3.2078]
[1750549785670,5.9867,2260.6,2259.9,3.2078]
[1750549786173,5.9867,2260.6,2260.2,3.2078]
[1750549786369,3.2078,2261.5,2260.2,3.2078]
[1750549786671,5.9867,2261.2,2260.2,3.2078]
[1750549787178,5.9867,2261.2,2260.6,0.88446]
[1750549787372,5.9867,2261.2,2261.1,0.88427]
[1750549787574,3.2078,2263.3,2263.0,0.88349]
[1750549787768,0.08837044,2263.2,2262.4,3.2078]
[1750549788175,0.08837044,2263.2,2261.2,4.309]
[1750549788176,3.2078,2262.9,2261.8,3.2078]
[1750549788373,0.88383,2262.3,2261.9,0.60393648]
[1750549788571,5.9867,2262.2,2261.5,3.2078]
[1750549788771,5.9867,2262.2,2261.5,3.81173648]
[1750549788974,5.9867,2262.2,2261.5,3.2078]
[1750549789275,0.08837044,2263.2,2262.1,3.2078]
[1750549789473,7.36259,2263.1,2262.4,3.2078]
[1750549789676,0.08837825,2263.0,2262.4,16.03899333]
[1750549789972,0.08837825,2263.0,2261.8,2.20994]
[1750549789973,8.25e-06,2263.0,2262.9,4.09136]
[1750549790175,8.25e-06,2263.0,2262.5,3.2078]
[1750549790369,8.25e-06,2263.0,2262.9,0.88356]
[1750549790674,8.25e-06,2263.0,2262.8,3.2078]
[1750549790875,5.00000825,2263.0,2262.5,3.2078]
[1750549791080,6.54757599,2262.9,2262.5,3.2078]
[1750549791378,0.35563196,2263.9,2263.8,13.71440333]
[1750549791379,1.96e-06,2263.9,2263.8,13.71440333]
[1750549791566,6.4791,2265.4,2263.8,3.2078]
[1750549791771,6.4791,2265.4,2263.9,3.2078]
[1750549792074,3.2078,2266.0,2265.0,3.2078]
[1750549792279,5.80604777,2267.6,2265.8,3.2078]
[1750549792280,3.31774158,2267.0,2265.8,3.2078]
[1750549792480,1.45010251,2266.9,2265.7,3.2078]
[1750549792675,3.2078,2267.2,2265.7,3.2078]
[1750549792871,3.2078,2267.2,2266.3,3.2078]
[1750549793066,3.2078,2267.2,2266.5,16.03899333]
[1750549793273,2.53378812,2268.2,2266.5,16.03899333]
[1750549793274,10.78266016,2270.1,2266.5,3.2078]
[1750549793475,2.53185585,2271.3,2270.8,0.88048]
[1750549793678,3.2078,2272.1,2271.2,3.2078]
[1750549793979,46.685,2272.6,2269.8,6.1616]
[1750549793980,7.06e-06,2271.6,2271.5,12.37041333]
[1750549794278,15.71,2276.5,2271.5,12.37041333]
[1750549794279,48.888,2281.9,2276.3,3.2078]
[1750549794578,26.5419327,2286.7,2276.3,3.2078]
[1750549794579,3.2078,2282.9,2281.7,3.2078]
[1750549794877,3.2078,2285.4,2282.8,3.2078]
[1750549795066,3.2078,2288.8,2286.4,22.59028873]
[1750549795271,3.2078,2288.8,2287.5,3.2078]
[1750549795272,3.2078,2288.7,2287.5,3.2078]
[1750549795478,3.2078,2286.7,2285.3,5.92372873]
[1750549795670,0.25484444,2288.8,2284.9,3.2078]
[1750549795671,3.2078,2287.0,2284.9,3.2078]
[1750549795872,1.47406,2285.9,2284.9,3.2078]
[1750549796072,291.43,2290.6,2284.9,3.2078]
[1750549796073,1.47406,2287.7,2287.3,26.82152353]
[1750549796374,15.71,2302.0,2285.0,104.29695436]
[1750549796375,46.628,2296.1,2288.8,3.2078]
[1750549796681,12.24589614,2292.6,2292.1,3.2078]
[1750549796978,3.2078,2292.2,2290.7,3.2078]
[1750549797176,3.2078,2290.8,2287.5,0.13315001]
[1750549797372,0.721,2292.1,2289.2,12.24589614]
[1750549797576,6.54349916,2294.6,2292.0,3.2078]
[1750549797771,46.95889234,2294.8,2293.1,3.2078]
[1750549797973,3.2078,2297.5,2294.5,3.2078]
[1750549798173,3.2078,2295.4,2294.8,3.2078]
[1750549798376,64.94969614,2295.3,2290.5,3.2078]
[1750549798575,3.2078,2293.5,2288.6,3.2078]
[1750549798876,46.471,2295.2,2293.4,3.2078]
[1750549799078,46.471,2295.2,2287.9,46.471]
[1750549799079,3.20388051,2293.4,2292.1,3.2078]
[1750549799270,52.7038,2293.3,2291.9,0.87238]
[1750549799470,52.7038,2293.3,2291.5,3.2078]
[1750549799471,3.2078,2292.5,2291.5,3.2078]
[1750549799677,0.05493918,2292.6,2290.6,3.2078]
[1750549799871,3.2078,2295.0,2291.9,3.2078]
[1750549800073,50.8085,2295.1,2293.2,36.44492353]
[1750549800074,5.19674,2294.7,2293.2,36.44492353]
[1750549800282,3.2078,2295.2,2294.6,3.2078]
[1750549800485,12.24589614,2294.9,2292.4,3.2078]
[1750549800675,12.24589614,2294.9,2287.2,290.444]
[1750549800676,3.2078,2292.8,2290.9,39.65272353]
[1750549800878,3.2078,2292.8,2290.7,36.44492353]
[1750549801079,2.13608,2293.0,2291.0,5.58098368]
[1750549801283,46.335,2297.5,2292.8,3.2078]
[1750549801487,3.2078,2297.0,2295.2,3.2078]
[1750549801676,3.2078,2295.3,2293.5,3.2078]
[1750549801874,3.2078,2294.9,2292.6,3.2078]
[1750549802076,3.2078,2294.9,2290.1,2.18263]
[1750549802077,7.5712,2295.2,2292.4,3.2078]
[1750549802283,7.5712,2295.2,2293.8,36.44492353]
[1750549802573,3.2078,2293.7,2292.1,3.2078]
[1750549802786,46.335,2295.1,2291.4,3.2078]
[1750549802787,3.2078,2294.0,2291.4,3.2078]
[1750549802982,3.2078,2296.6,2295.0,36.44492353]
[1750549803192,3.2078,2297.8,2296.0,3.2078]
[1750549803483,0.08704356,2297.7,2295.8,3.2078]
[1750549803695,46.335,2302.6,2294.6,2.17838]
[1750549803696,3.2078,2300.3,2298.6,36.44492353]
[1750549803986,3.2078,2301.2,2300.2,3.2078]
[1750549804186,3.2078,2302.8,2301.6,0.8687]
[1750549804390,0.00361722,2303.8,2301.0,3.2078]
[1750549804391,3.2078,2303.2,2301.0,3.2078]
[1750549804685,3.2078,2302.8,2301.1,3.2078]
[1750549804887,3.2078,2303.6,2300.9,36.44492353]
[1750549805088,0.00361722,2303.8,2302.6,36.44492353]
[1750549805286,0.00361722,2303.8,2303.1,36.44492353]
[1750549805490,7.22e-06,2303.8,2303.7,37.31284353]
[1750549805689,3.2078,2304.9,2303.7,3.2078]
[1750549805878,3.2078,2305.6,2303.7,3.2078]
[1750549806082,3.2078,2305.5,2304.2,3.2078]
[1750549806384,3.2078,2305.5,2300.8,2.17251]
[1750549806385,3.2078,2305.1,2302.7,3.2078]
[1750549806582,3.2078,2305.0,2303.0,36.44492353]
[1750549806785,3.2078,2307.9,2306.0,3.2078]
[1750549806984,3.2078,2307.9,2305.1,3.2078]
[1750549806985,3.2078,2306.1,2305.1,3.2078]
[1750549807184,3.2078,2305.0,2303.4,3.2078]
[1750549807380,3.2078,2307.0,2304.4,3.2078]
[1750549807582,46.108,2307.1,2301.5,5.54983541]
[1750549807583,6.1319,2306.9,2304.9,3.2078]
[1750549807780,6.1319,2306.9,2304.7,3.2078]
[1750549807781,3.2078,2305.7,2304.7,3.2078]
[1750549807987,3.2078,2305.7,2301.7,2.17162]
[1750549807988,6.1319,2305.6,2305.4,3.2078]
[1750549808178,4.2478,2307.0,2305.5,3.2078]
[1750549808383,345.812,2315.1,2305.5,15.30242474]
[1750549808593,3.2078,2310.9,2309.8,3.2078]
[1750549808887,345.812,2322.9,2309.8,3.2078]
[1750549808888,6.1319,2314.1,2311.9,3.2078]
[1750549809088,3.2078,2313.8,2313.2,3.2078]
[1750549809282,6.1319,2314.1,2313.7,3.2078]
[1750549809482,6.1319,2314.1,2312.9,3.2078]
[1750549809684,0.31543009,2314.2,2313.5,3.2078]
[1750549809885,0.31543009,2314.2,2312.7,3.2078]
[1750549809886,17.56132623,2314.2,2312.7,3.2078]
[1750549810080,17.56132623,2314.2,2309.9,20.05132474]
[1750549810081,3.2078,2312.8,2309.9,20.05132474]
[1750549810284,5.9233,2314.1,2310.8,3.2078]
[1750549810285,3.2078,2311.5,2310.8,3.2078]
[1750549810486,51.8923,2311.4,2310.3,3.2078]
[1750549810791,3.2078,2311.1,2310.3,36.44492353]
[1750549811092,3.2078,2311.1,2308.0,4.644]
[1750549811093,45.969,2311.0,2308.3,3.2078]
[1750549811390,45.969,2311.0,2305.9,2.16774]
[1750549811391,3.2078,2308.2,2306.0,3.2078]
[1750549811599,15.45369614,2306.7,2304.1,3.2078]
[1750549811891,15.45369614,2306.7,2302.4,2.17095]
[1750549811892,3.2078,2304.9,2303.2,3.2078]
[1750549812192,3.2078,2304.9,2301.6,4.644]
[1750549812193,3.2078,2304.0,2302.9,3.2078]
[1750549812388,3.2078,2303.0,2302.1,3.2078]
[1750549812692,3.2078,2302.8,2301.8,3.2078]
[1750549812888,3.2078,2302.4,2301.8,0.86863]
[1750549813089,3.2078,2301.9,2300.2,4.644]
[1750549813291,3.2078,2301.1,2300.6,3.2078]
[1750549813495,3.2078,2300.7,2299.2,3.2078]
[1750549813787,3.2078,2300.4,2298.4,3.2078]
[1750549813988,3.2078,2300.3,2298.9,3.2078]
[1750549814195,3.2078,2299.8,2299.0,0.08699434]
[1750549814395,6.3116,2300.6,2299.1,3.2078]
[1750549814589,3.2078,2299.7,2299.0,0.08699434]
[1750549814889,6.3116,2300.6,2299.0,0.08699434]
[1750549814890,3.2078,2300.2,2299.0,0.08699434]
[1750549815095,3.2078,2299.9,2297.9,3.2078]
[1750549815286,52.2456,2300.6,2296.0,3.2078]
[1750549815287,3.2078,2297.6,2296.0,3.2078]
[1750549815486,3.2078,2296.2,2295.6,3.2078]
[1750549815697,5.0,2296.2,2294.7,3.2078]
[1750549815994,6.3116,2297.5,2293.0,45.934]
[1750549815995,4.42223,2296.1,2295.2,3.2078]
[1750549816189,4.42223,2296.1,2292.1,4.36141]
[1750549816190,3.2078,2298.9,2296.3,6.58962654]
[1750549816492,5.99e-06,2297.8,2297.0,3.2078]
[1750549816795,5.99e-06,2297.8,2295.9,12.24589614]
[1750549817092,5.99e-06,2297.8,2297.5,3.2078]
[1750549817395,5.99e-06,2297.8,2296.7,0.87056]
[1750549817591,5.99e-06,2297.8,2296.5,3.2078]
[1750549817592,5.99e-06,2297.8,2296.8,3.2078]
[1750549817788,5.99e-06,2297.8,2297.2,3.2078]
[1750549817988,8.20780599,2297.8,2296.6,3.2078]
[1750549818299,3.2078,2296.7,2294.9,3.2078]
[1750549818596,3.2078,2295.3,2294.4,3.2078]
[1750549818794,3.2078,2294.5,2293.3,6.58962654]
[1750549819089,3.2078,2294.5,2293.2,3.52750107]
[1750549819090,3.2078,2293.7,2293.2,0.31970107]
[1750549819296,3.2078,2293.5,2293.2,0.31970107]
[1750549819490,3.2078,2294.3,2293.4,3.2078]
[1750549819686,3.2078,2294.7,2293.9,3.2078]
[1750549819891,45.957,2295.7,2292.4,3.2078]
[1750549819892,3.2078,2294.0,2292.4,3.2078]
[1750549820097,287.234,2295.4,2285.5,87.48238]
[1750549820098,3.2078,2292.2,2290.7,0.87283]
[1750549820398,45.957,2293.9,2292.0,3.2078]
[1750549820399,3.2078,2292.9,2292.0,3.2078]
[1750549820598,3.2078,2292.1,2291.6,2.15628]
[1750549820893,45.957,2292.0,2290.1,3.2078]
[1750549821196,3.17691,2290.2,2289.0,0.87348]
[1750549821394,2.3161,2289.1,2288.9,0.87353]
[1750549821697,45.957,2289.0,2286.6,3.2078]
[1750549821901,3.2078,2288.3,2288.2,0.8738]
[1750549822102,51.9518,2289.0,2288.6,8.89468496]
[1750549822103,2.28887,2288.9,2288.6,8.89468496]
[1750549822290,3.2078,2289.8,2288.7,8.89468496]
[1750549822593,3.2078,2290.6,2290.0,0.87311]
[1750549822800,3.2078,2291.3,2290.1,8.89468496]
[1750549823096,3.2078,2290.7,2289.3,3.2078]
[1750549823396,5.9948,2291.8,2289.2,3.2078]
[1750549823397,3.2078,2290.1,2289.2,3.2078]
[1750549823595,3.2078,2290.1,2289.5,8.89468496]
[1750549823893,3.2078,2290.2,2289.3,12.10248496]
[1750549824097,3.2078,2290.2,2289.7,8.89468496]
[1750549824300,3.2078,2290.7,2290.1,8.89468496]
[1750549824499,46.006,2291.0,2289.1,3.2078]
[1750549824800,3.2078,2290.2,2289.2,3.2078]
[1750549825100,49.2448,2292.8,2291.4,8.89468496]
[1750549825301,0.08723339,2292.7,2292.1,3.2078]
[1750549825494,0.08723339,2292.7,2289.9,3.2078]
[1750549825495,3.2078,2292.2,2289.9,3.2078]
[1750549825708,3.2078,2291.5,2290.0,12.10248496]
[1750549825894,52.26645622,2292.1,2290.9,3.2078]
[1750549826191,0.08726003,2292.0,2291.7,12.10248496]
[1750549826395,45.02226349,2292.1,2292.0,0.87235]
[1750549826593,45.02226349,2292.1,2291.9,3.2078]
[1750549826998,45.02226349,2292.1,2291.6,3.2078]
[1750549827200,44.10152349,2292.1,2291.9,4.08016]
[1750549827389,44.10152349,2292.1,2291.6,12.10248496]
[1750549827390,46.037,2293.2,2292.0,15.31028496]
[1750549827594,6.1422,2293.5,2293.1,0.87193]
[1750549827901,46.037,2293.7,2291.6,2.18121]
[1750549827902,0.08720676,2293.4,2293.3,0.87183]
[1750549828092,6.76e-06,2293.4,2293.3,4.07966]
[1750549828292,46.037,2293.7,2293.3,4.1981]
[1750549828496,23.4864178,2293.7,2293.6,4.07954]
[1750549828698,3.2078,2294.9,2293.6,15.31028496]
[1750549829002,3.2078,2294.9,2293.8,3.2078]
[1750549829300,0.87152,2294.2,2293.0,3.2078]
[1750549829500,0.87152,2294.2,2292.0,3.2078]
[1750549829501,4.07943,2294.0,2292.0,3.2078]
[1750549829700,340.0132,2294.1,2292.0,3.2078]
[1750549829701,3.2078,2293.7,2292.0,3.2078]
[1750549829908,3.2078,2293.7,2292.6,3.2078]
[1750549830202,3.2078,2293.4,2291.5,3.2078]
[1750549830406,5.0,2293.7,2288.7,46.045]
[1750549830407,3.2078,2291.7,2288.9,1.74558212]
[1750549830700,3.2078,2291.7,2288.7,3.2078]
[1750549830701,9.391,2291.6,2290.0,3.2078]
[1750549830906,46.045,2292.6,2291.2,3.2078]
[1750549831108,3.2078,2291.8,2291.3,0.08728669]
[1750549831300,3.2078,2291.5,2289.6,15.39756403]
[1750549831498,3.2078,2290.8,2289.8,3.2078]
[1750549831803,3.2078,2290.5,2288.8,3.2078]
[1750549831993,3.2078,2290.5,2289.6,3.2078]
[1750549832194,3.2078,2290.5,2289.4,12.18976403]
[1750549832195,3.2078,2290.5,2289.4,3.2078]
[1750549832505,3.2078,2289.8,2288.8,3.2078]
[1750549832808,0.87359,2288.8,2287.6,3.2078]
[1750549833008,3.2078,2288.6,2288.0,3.2078]
[1750549833214,3.2078,2288.6,2286.4,2.1862]
[1750549833215,49.2588,2288.6,2287.4,4.08192]
[1750549833403,49.2588,2288.6,2287.4,12.18976403]
[1750549833608,3.2078,2287.2,2285.5,1.56983972]
[1750549833903,3.2078,2287.7,2286.8,3.2078]
[1750549834100,46.08,2288.5,2286.1,15.39756403]
[1750549834101,3.2078,2287.3,2286.1,15.39756403]
[1750549834307,3.2078,2287.3,2286.2,0.08748141]
[1750549834605,4.36567,2290.1,2286.2,0.08748141]
[1750549834606,3.2078,2287.8,2287.1,12.18976403]
[1750549834804,49.2878,2288.2,2287.1,0.9903]
[1750549835004,3.2078,2287.9,2286.6,3.2078]
[1750549835210,46.08,2288.1,2286.7,0.08746228]
[1750549835211,3.2078,2287.4,2286.7,0.08746228]
[1750549835503,3.2078,2287.3,2285.6,3.2078]
[1750549835707,3.2078,2286.9,2285.7,0.08750054]
[1750549836006,3.2078,2284.9,2283.1,1.74901157]
[1750549836198,55.5509,2284.8,2284.3,12.18976403]
[1750549836398,46.08,2284.7,2284.4,0.08755034]
[1750549836707,3.2078,2284.5,2283.2,0.99030886]
[1750549836901,3.2078,2284.5,2284.0,3.2078]
[1750549837105,1.086,2284.4,2283.9,12.18976403]
[1750549837299,1.086,2284.4,2284.0,12.18976403]
[1750549837504,3.2078,2284.2,2284.0,0.99030886]
[1750549837797,4.2938,2284.4,2283.4,3.2078]
[1750549837998,4.2938,2284.4,2283.5,12.18976403]
[1750549838199,4.2938,2284.4,2283.8,12.18976403]
[1750549838406,3.2078,2284.0,2282.7,0.87589]
[1750549838611,3.2078,2284.0,2283.4,12.18976403]
[1750549838814,3.2078,2284.0,2283.3,12.18976403]
[1750549838998,3.2078,2283.6,2283.1,12.18976403]
[1750549839198,46.122,2283.5,2283.2,12.18976403]
[1750549839511,46.122,2283.5,2283.1,0.99030886]
[1750549839808,3.2078,2284.3,2283.2,12.18976403]
[1750549840003,9.0897,2284.3,2283.8,12.18976403]
[1750549840306,9.0897,2284.3,2282.1,12.24589614]
[1750549840307,1.086,2284.4,2284.2,15.39756403]
[1750549840509,3.2078,2285.4,2284.3,12.18975437]
[1750549840701,3.2078,2284.8,2283.4,3.2078]
[1750549840906,3.2078,2284.8,2283.3,1.56983972]
[1750549840907,3.2078,2283.7,2282.5,1.56983972]
[1750549841200,3.2078,2283.4,2282.8,3.2078]
[1750549841409,46.157,2283.3,2282.9,1.74901157]
[1750549841600,3.2078,2283.0,2281.5,3.53681275]
[1750549842000,3.2078,2282.6,2281.5,0.32901275]
[1750549842204,3.2078,2282.6,2281.7,3.2078]
[1750549842399,2.92309712,2282.6,2282.0,3.2078]
[1750549842609,46.157,2282.9,2282.1,0.68410132]
[1750549842813,46.157,2282.9,2282.2,0.68410132]
[1750549843008,45.73004733,2282.9,2282.3,0.68410132]
[1750549843214,45.16072563,2282.9,2282.4,0.68410132]
[1750549843406,45.16072563,2282.9,2281.8,3.2078]
[1750549843407,45.16072563,2282.9,2282.5,0.68410132]
[1750549843607,3.2078,2283.9,2282.8,3.2078]
[1750549843809,3.2078,2283.8,2282.9,0.68410132]
[1750549844008,3.2078,2283.8,2282.8,3.2078]
[1750549844308,3.2078,2283.5,2282.9,0.68406475]
[1750549844503,46.188,2283.9,2283.0,0.68406475]
[1750549845012,3.2078,2283.3,2282.5,3.2078]
[1750549845207,3.2078,2283.3,2282.8,3.2078]
[1750549845514,3.2078,2284.3,2283.1,3.2078]
[1750549845703,6.1164,2284.5,2283.3,4.11130826]
[1750549845704,3.2078,2284.0,2283.3,4.11130826]
[1750549845899,3.2078,2284.6,2283.6,3.2078]
[1750549846207,3.2078,2284.9,2284.3,3.2078]
[1750549846520,46.204,2284.9,2284.0,4.11130826]
[1750549847209,3.2078,2284.3,2283.7,4.11130826]
[1750549847510,3.2078,2283.8,2282.5,5.92372873]
[1750549847700,5.9154,2284.2,2282.7,5.92372873]
[1750549847701,3.2078,2282.8,2282.7,5.92372873]
[1750549847908,3.2078,2283.2,2282.7,5.92372873]
[1750549848408,5.0,2283.2,2282.2,8.49699605]
[1750549848615,3.2078,2282.3,2281.5,0.32901275]
[1750549848822,3.2078,2282.0,2281.5,0.32901275]
[1750549849004,46.204,2282.2,2281.5,0.32901275]
[1750549849510,3.2078,2281.9,2281.5,0.32901275]
[1750549849707,3.2078,2281.6,2280.5,3.2078]
[1750549849907,6.0509,2282.1,2279.5,3.2078]
[1750549849908,3.2078,2281.3,2279.5,3.2078]
[1750549850215,3.2078,2281.6,2280.2,3.2078]
[1750549850416,3.2078,2281.3,2279.9,3.2078]
[1750549850614,3.2078,2281.3,2280.2,3.2078]
[1750549850821,0.0211,2281.2,2280.2,3.2078]
[1750549851010,3.2078,2280.4,2279.7,3.2078]
[1750549851314,3.2078,2280.8,2279.6,3.2078]
[1750549851820,49.4238,2281.1,2280.0,6.53087583]
[1750549852015,49.4238,2281.1,2279.9,3.32307583]
[1750549852016,3.2078,2280.7,2279.9,3.32307583]
[1750549852312,3.2078,2280.4,2279.3,3.32307583]
[1750549852508,3.2078,2280.4,2279.2,3.2078]
[1750549852709,3.2078,2280.4,2279.2,6.53087583]
[1750549852909,6.3813,2281.0,2277.2,11.31471857]
[1750549852910,3.2078,2279.6,2278.9,3.32307583]
[1750549853111,3.2078,2279.3,2278.4,3.2078]
[1750549853319,49.4468,2279.3,2278.4,3.2078]
[1750549853512,3.2078,2279.0,2278.5,1.75468177]
[1750549853716,3.2078,2279.0,2278.6,1.75468177]
[1750549853916,3.2078,2279.0,2278.7,1.75468177]
[1750549854122,3.2078,2279.0,2278.8,1.75468177]
[1750549854321,3.2078,2279.0,2278.9,1.75468177]
[1750549855121,3.2078,2279.3,2278.9,5.0]
[1750549855315,3.2078,2279.3,2279.1,1.24071401]
[1750549855515,3.2078,2279.3,2277.9,3.2078]
[1750549855819,3.2078,2278.4,2277.6,0.33211664]
[1750549856020,4.08557,2278.1,2277.1,3.2078]
[1750549856218,46.265,2278.0,2277.1,3.2078]
[1750549856412,46.265,2278.0,2276.9,3.2078]
[1750549856615,3.2078,2277.6,2276.9,3.2078]
[1750549856817,0.878,2277.5,2276.6,3.2078]
[1750549857018,3.2078,2277.6,2276.6,3.2078]
[1750549857317,3.2078,2277.4,2276.5,3.2078]
[1750549857822,3.2078,2277.1,2276.4,3.32307583]
[1750549858117,3.2078,2276.5,2276.0,3.2078]
[1750549858319,3.2078,2276.5,2275.0,8.27969721]
[1750549858320,2.19638,2276.0,2275.3,2.00003]
[1750549858518,3.2078,2275.8,2275.0,3.32307583]
[1750549858724,0.87889,2275.2,2274.8,3.32307583]
[1750549858916,3.2078,2275.5,2274.7,3.2078]
[1750549859118,3.2078,2276.2,2275.4,3.32307583]
[1750549859417,3.2078,2276.6,2275.8,3.32307583]
[1750549859613,0.87836,2276.5,2275.8,3.32307583]
[1750549859810,3.2078,2276.0,2275.5,3.2078]
[1750549860311,3.2078,2276.6,2275.8,3.2078]
[1750549860518,3.2078,2276.1,2275.9,3.32307583]
[1750549860819,3.2078,2276.1,2275.7,3.32307583]
[1750549861027,3.2078,2275.8,2273.9,3.2078]
[1750549861315,3.2078,2274.9,2274.2,3.2078]
[1750549861516,3.2078,2275.6,2274.8,3.2078]
[1750549861721,3.2078,2277.2,2275.4,3.2078]
[1750549861924,3.2078,2276.9,2276.5,2.51842293]
[1750549862108,3.2078,2277.2,2276.2,3.2078]
[1750549862311,3.2078,2277.2,2277.0,2.51396678]
[1750549862514,3.2078,2277.2,2276.6,3.2078]
[1750549862819,3.2078,2278.8,2277.1,3.2078]
[1750549863018,3.2078,2278.9,2277.3,3.2078]
[1750549863325,3.2078,2278.0,2277.2,5.79921256]
[1750549863620,3.2078,2278.3,2277.0,3.2078]
[1750549863920,3.2078,2279.0,2277.3,3.2078]
[1750549864224,3.2078,2277.5,2276.0,8.27969721]
[1750549864417,3.2078,2277.9,2276.1,3.2078]
[1750549864624,3.2078,2278.8,2277.6,3.2078]
[1750549864824,3.2078,2277.7,2276.3,3.2078]
[1750549865024,3.2078,2276.7,2275.6,0.87869]
[1750549865320,3.2078,2278.1,2276.3,0.87842]
[1750549865521,3.2078,2278.1,2276.2,3.2078]
[1750549865522,3.2078,2278.1,2276.8,3.2078]
[1750549865714,3.2078,2278.8,2277.5,3.2078]
[1750549865917,3.2078,2278.8,2277.1,3.2078]
[1750549865918,0.06847599,2278.0,2277.1,3.2078]
[1750549866117,0.06847599,2278.0,2277.5,3.2078]
[1750549866325,0.0219,2277.9,2277.8,3.2078]
[1750549866522,0.0219,2277.9,2277.4,3.2078]
[1750549866726,0.0219,2277.9,2277.3,3.2078]
[1750549867022,3.2078,2278.8,2277.6,3.2078]
[1750549867217,3.2078,2278.8,2276.9,48.52947]
[1750549867218,3.2078,2278.8,2277.9,3.2078]
[1750549867422,3.2078,2280.3,2278.7,3.2078]
[1750549867626,2.41285197,2278.9,2278.8,1.75503986]
[1750549867917,46.335,2279.3,2278.8,2.40135457]
[1750549868118,46.335,2279.3,2278.3,3.2078]
[1750549868119,0.08775008,2279.2,2278.9,2.40135457]
[1750549868319,0.08775008,2279.2,2279.0,2.40135457]
[1750549868523,4.1819,2281.1,2279.1,5.59635055]
[1750549868524,3.2078,2281.1,2279.1,5.59635055]
[1750549868721,2.41285197,2280.0,2279.9,3.2078]
[1750549868919,3.2078,2280.2,2278.7,3.2078]
[1750549869115,2.41285197,2279.9,2279.0,3.2078]
[1750549869423,46.335,2280.6,2279.6,3.2078]
[1750549869630,2.41285197,2280.5,2279.5,3.2078]
[1750549869817,2.41285197,2280.2,2279.8,3.2078]
[1750549870125,3.2078,2280.7,2279.5,7.43153636]
[1750549870326,46.331,2280.6,2279.9,4.22373636]
[1750549870517,3.2078,2280.0,2279.1,4.22373636]
[1750549870822,3.2078,2279.4,2278.4,8.32e-06]
[1750549871024,0.06847599,2278.0,2277.9,3.38862748]
[1750549871323,0.06847599,2278.0,2277.4,3.2078]
[1750549871826,0.06847599,2278.0,2277.9,3.39127594]
[1750549872129,0.06847599,2278.0,2277.7,3.39127594]
[1750549872324,0.06847599,2278.0,2276.7,8.27969721]